Cogmind - Beta 12 @@@ ROGUE MODE // 2023.11.15 @ 21:27:40 Player: LustLizard Result: Destroyed by D-53 Grenadier with Mini Grenade Launcher Performance ------------- Evolutions (0) 0 Regions Visited (2) 400 Robots Destroyed (16) 80 Value Destroyed (305) 305 Prototype IDs (0) 0 Alien Tech Used (0) 0 Bonus (0) 0 TOTAL SCORE: 785 Bonus ------- None Cogmind --------- Core Integrity 0/250 Matter 300/300 Energy 97/100 System Corruption 2% Temperature Cool (16) Movement Rolling (110) Ox2 Location -10/Mines Parts ------- > --- POWER (1) -------- (None) > --- PROPULSION (2) --- Wheel > --- UTILITY (2) ------ Disposable Heat Sink Large Storage Unit > --- WEAPON (2) ------- (None) > --- INVENTORY (15) --- Improved Ion Engine Light Treads Light Treads Armored Wheel Armored Wheel Armored Wheel Armored Wheel Improved Hover Unit Improved Hover Unit Disposable Heat Sink Small Storage Unit Small Laser Mini Grenade Launcher Mini Grenade Launcher Mini Grenade Launcher Peak State ------------ > --- POWER ------------ Light Nuclear Core > --- PROPULSION ------- Light Treads Wheel > --- UTILITY ---------- Disposable Heat Sink Large Storage Unit > --- WEAPON ----------- Small Laser Small Laser > --- INVENTORY -------- Ion Engine Light Ion Engine Light Ion Engine Light Treads Light Treads Aluminum Leg Aluminum Leg Compact Wheel Improved Hover Unit Improved Hover Unit Disposable Heat Sink Small Storage Unit Small Laser Mini Grenade Launcher Mini Grenade Launcher [Rating: 12] Favorites ----------- Power Light Nuclear Core Engine Light Ion Engine Power Core Light Nuclear Core Propulsion Wheel Treads Light Treads Wheel Wheel Utility Large Storage Unit Device Disposable Heat Sink Storage Large Storage Unit Protection Light Armor Plating Weapon Small Laser Energy Gun Small Laser Build | -11 -10 -10 ------- Run | Jun Mat Min Slots Evolved . | . . . Power . | . . . Propulsion . | . . . Utility . | . . . Weapon . | . . . Parts Attached 15 | 7 8 . Power 4 | 1 3 . Engine 3 | 1 2 . Core 1 | . 1 . Reactor . | . . . Propulsion 5 | 3 2 . Treads 2 | 1 1 . Leg . | . . . Wheel 3 | 2 1 . Hover . | . . . Flight . | . . . Utility 4 | 1 3 . Device 1 | . 1 . Storage 2 | 1 1 . Processor . | . . . Hackware . | . . . Protection 1 | . 1 . Artifact . | . . . Weapon 2 | 2 . . Energy Gun 2 | 2 . . Energy Cannon . | . . . Ballistic Gun . | . . . Ballistic Cannon . | . . . Launcher . | . . . Special Weapon . | . . . Impact Weapon . | . . . Slashing Weapon . | . . . Piercing Weapon . | . . . Special Melee Weapon . | . . . Unidentified Prototypes . | . . . Parts Lost 5 | . 1 4 Power 1 | . . 1 Propulsion 1 | . . 1 Utility 1 | . 1 . Weapon 2 | . . 2 Highest Loss Streak 4 | . 1 4 To Critical Strikes . | . . . Average Slot Usage (%) 99 | . 99 99 Engine 4 | . 5 . Core 9 | . 7 14 Treads 14 | . 14 14 Wheel 13 | . 13 14 Device 9 | . 8 14 Storage 14 | . 14 14 Protection 4 | . 5 . Energy Gun 27 | . 28 27 Naked Turns . | . . . Heaviest Build 30 | 10 30 28 Greatest Support 26 | 26 20 20 Greatest Overweight (x) 3 | . 3 2 Average Overweight (x) 1 | . 1 1 Largest Inventory Capacity 15 | 8 15 15 Average Capacity 13 | 7 13 15 Most Carried 15 | 6 15 15 Average Carried 12 | 4 12 15 Final Capacity 15 | 8 15 15 Final Carried 15 | 6 15 15 Class Distribution -------------------- 100% | Mutant Dominant Class ---------------- Mutant | -10/Materials Mutant | -10/Mines Resources | -11 -10 -10 ----------- Run | Jun Mat Min Matter Collected 377 | 191 186 . Remotely . | . . . Salvage Created 395 | . 383 12 Parts 33 | . 29 4 Haulers Intercepted . | . . . Recyclers Shooed . | . . . Parts Field Recycled . | . . . Retrieved Matter . | . . . Parts Self-Destructed . | . . . Prevented . | . . . Kills | -11 -10 -10 ------- Run | Jun Mat Min Combat Hostiles Destroyed 11 | . 11 . Guns 11 | . 11 . Classes Destroyed 4 | . 4 . Tunneler 2 | . 1 1 Watcher 3 | . 3 . Swarmer 6 | . 6 . Grunt 5 | . 5 . Best Kill Streak 3 | . 3 1 Combat Bots Only 3 | . 3 . Max Kills in Single Turn 1 | . 1 1 Gunslinging . | . . . Exploded . | . . . Melee . | . . . Uniques/NPCs Destroyed . | . . . Combat | -11 -10 -10 -------- Run | Jun Mat Min Damage Taken 821 | . 371 450 Core 253 | . 109 144 Absorbed by Shields . | . . . Core Remaining (%) 100 | 100 . . Volleys Fired 40 | . 36 4 Largest 2 | . 2 2 Hottest 80 | . 80 80 Shots Fired 79 | . 73 6 Gun 79 | . 73 6 Cannon . | . . . Launcher . | . . . Special . | . . . Kinetic . | . . . Thermal 79 | . 73 6 Explosive . | . . . Electromagnetic . | . . . Robot Hit Streak 15 | . 15 5 Robot Miss Streak 3 | . 3 1 Penetration Max . | . . . Secondary Targets 2 | . 2 . Max Gunslinging Chain 1 | . 1 . Shots Hit Robots 47 | . 42 5 Core Hits 22 | . 21 1 Critical Kills . | . . . Critical Parts Destroyed . | . . . Critical Strikes . | . . . Melee Attacks . | . . . Impact . | . . . Slashing . | . . . Piercing . | . . . Sneak Attacks . | . . . Combat Hostiles . | . . . Follow-up Attacks . | . . . Damage Inflicted 568 | . 515 53 Guns 568 | . 515 53 Cannons . | . . . Explosions . | . . . Melee . | . . . Ramming . | . . . Kinetic . | . . . Thermal 568 | . 515 53 Explosive . | . . . Electromagnetic . | . . . Impact . | . . . Slashing . | . . . Piercing . | . . . Highest Corruption 2 | . 2 2 Average Corruption 2 | . 2 2 Corruption Purged . | . . . Corruption Blocked . | . . . Effects 21 | . 18 3 Message Errors 4 | . 4 . Matter Fused 5 | . 4 1 Heat Flow Errors 2 | . 1 1 Energy Discharges 4 | . 3 1 Parts Fused 1 | . 1 . Data Loss (minor) 1 | . 1 . Data Loss (major) 1 | . 1 . Misfires 2 | . 2 . Weapon Failures 1 | . 1 . Overload Shots . | . . . Overflow Damage . | . . . Projectiles . | . . . Explosions . | . . . Melee . | . . . Knockbacks . | . . . Impact . | . . . Kinetic . | . . . Secondary . | . . . Self-Inflicted Damage . | . . . Shots . | . . . Rammed . | . . . Targets Rammed . | . . . Kicked . | . . . Crushed . | . . . Highest Temperature 174 | . 174 96 Average Temperature 52 | . 54 29 Received Heat Transfer 105 | . 105 . Siege Activations . | . . . Robots Corrupted . | . . . Combat Hostiles . | . . . Parts Fried . | . . . Impact Corruptions . | . . . Robots Melted . | . . . Combat Hostiles . | . . . Parts Melted 1 | . 1 . Heat Transferred 1225 | . 1100 125 Parts Sabotaged . | . . . Parts Stolen . | . . . Parts Stripped . | . . . Power Chain Reactions . | . . . Missiles Intercepted . | . . . Alert | -11 -10 -10 ------- Run | Jun Mat Min Peak Influence 255 | . 255 5 Initial . | . . . Average 84 | . 116 2 Maximum Alert Level 1 | . 1 . Low Security (%) 92 | 100 89 100 Level 1 7 | . 10 . Level 2 . | . . . Level 3 . | . . . Level 4 . | . . . Level 5 . | . . . High Security . | . . . Max Security . | . . . Squads Dispatched 3 | . 3 . Investigation 1 | . 1 . Extermination . | . . . Reinforcement 2 | . 2 . Assault . | . . . Garrison . | . . . Intercept . | . . . Searches Triggered . | . . . Construction Impeded . | . . . Haulers Reinforced . | . . . Active Scanning Responses . | . . . Cargo Convoy Interrupts . | . . . Stealth | -11 -10 -10 --------- Run | Jun Mat Min Distress Signals 3 | . 2 1 Communications Jammed . | . . . Distress Signals . | . . . Times Spotted 21 | . 19 2 Peak Tracking Total 4 | . 4 2 Tactical Retreats 2 | . 2 . Traps | -11 -10 -10 ------- Run | Jun Mat Min Traps Triggered 2 | . 2 . Indirectly . | . . . Trap Hack Attempts . | . . . Triggered . | . . . Disarmed . | . . . Reprogrammed . | . . . Reused . | . . . Traps Extracted . | . . . Installed . | . . . Triggered . | . . . Machines | -11 -10 -10 ---------- Run | Jun Mat Min Machines Disabled . | . . . Max in Single Turn . | . . . Machines Repaired . | . . . Machines Sabotaged . | . . . Overloaded Fab Kills . | . . . Hacking | -11 -10 -10 --------- Run | Jun Mat Min Machines Accessed 5 | . 5 . Terminals 5 | . 5 . Fabricators . | . . . Repair Stations . | . . . Recycling Units . | . . . Scanalyzers . | . . . Garrison Access . | . . . Total Hacks 14 | . 14 . Successful 9 | . 9 . Failed 5 | . 5 . Catastrophic . | . . . Database Lockouts . | . . . Manual 12 | . 12 . Terminals 14 | . 14 . Fabricators . | . . . Repair Stations . | . . . Recycling Units . | . . . Scanalyzers . | . . . Garrison Access . | . . . Terminal Hacks 6 | . 6 . Robot Analysis 2 | . 2 . Locate Traps 3 | . 3 . Zone Layout 1 | . 1 . Fabricator Hacks . | . . . Repair Station Hacks . | . . . Recycling Unit Hacks . | . . . Scanalyzer . | . . . Garrison Access Hacks . | . . . Unauthorized Hacks 3 | . 3 . Terminals 3 | . 3 . Botnet 3 | . 3 . Fabricators . | . . . Repair Stations . | . . . Recycling Units . | . . . Scanalyzers . | . . . Garrison Access . | . . . Data Cores Recovered . | . . . Used . | . . . Hacking Detections 5 | . 5 . Full Trace Events 1 | . 1 . Feedback Events . | . . . Feedback Blocked . | . . . Robot Schematics Acquired . | . . . Robots Built . | . . . Authchips . | . . . Time . | . . . Total Robot Build Rating . | . . . Part Schematics Acquired . | . . . Parts Built . | . . . Authchips . | . . . Time . | . . . Total Part Build Rating . | . . . Parts Repaired . | . . . Time . | . . . Parts Recycled . | . . . Recycled Matter . | . . . Retrieved Matter . | . . . Retrieved Components . | . . . Parts Scanalyzed . | . . . Part Schematics Acquired . | . . . Parts Damaged . | . . . Bothacking | -11 -10 -10 ------------ Run | Jun Mat Min Used RIF Installer . | . . . Robots Hacked . | . . . Non-combat . | . . . Combat . | . . . Robot Hacks Applied . | . . . Relay Couplers Released . | . . . Fabnet Peak Effective % . | . . . Robots Rewired . | . . . Allies Hacked . | . . . Hacks Repelled . | . . . Allies | -11 -10 -10 -------- Run | Jun Mat Min Total Allies . | . . . Largest Group . | . . . Highest-Rated Group . | . . . Highest-Rated Ally . | . . . Total Orders . | . . . Ally Attacks . | . . . Total Damage . | . . . Kills . | . . . Allies Corrupted . | . . . Allies Melted . | . . . Intel | -11 -10 -10 ------- Run | Jun Mat Min Robot Analysis Total 2 | . 2 . Derelict Logs Recovered 1 | . . 1 Drone Launches . | . . . Drone Recoveries . | . . . Exploration | -11 -10 -10 ------------- Run | Jun Mat Min Turns Passed 1713 | 68 1231 414 Spaces Moved 834 | 44 623 167 Core 6 | 5 1 . Treads 468 | 20 283 165 Legs . | . . . Wheels 360 | 19 339 2 Hover . | . . . Flight . | . . . Fastest Speed 50 | 50 80 110 Average Speed 177 | 119 164 238 Slowest Speed 240 | 160 240 240 Overloaded Moves . | . . . Propulsion Burnouts . | . . . Robots Hopped . | . . . Cave-ins Triggered . | . . . Exploration Rate (%) 40 | 3 82 35 Regions Visited 2 Branch Regions 1 Pre-discovered Areas 1 | . . 1 Known Exits Taken . | . . . Unknown Exits Taken 2 | 1 1 . Scrap Searched 1 | . . 1 Spaces Dug . | . . . Terrain Destroyed . | . . . Melee . | . . . Projectile . | . . . AOE . | . . . Terrain Rammed . | . . . Walls Destroyed . | . . . Machines Disabled . | . . . Actions | -11 -10 -10 --------- Run | Jun Mat Min Total 990 | 56 757 177 Wait 79 | . 73 6 Move 832 | 43 622 167 Hop . | . . . Pick Up 17 | 5 12 . Fast Attach 10 | 7 3 . Attach 1 | . 1 . Detach 1 | 1 . . Swap 4 | . 4 . Drop 6 | . 6 . Fire 40 | . 36 4 Melee . | . . . Ram . | . . . Kick . | . . . Crush . | . . . Escape Stasis . | . . . Rewire . | . . . Trap . | . . . Miscellaneous . | . . . Route ------- -11/Junkyard -10/Materials (discovered 4 exits: [*Mat x2] / [*Min x2]) -10/Mines (discovered 1 exit: [*Exi]) History --------- Turn | Location | Event 28 | -11/Junkyard | Discovered new exit (range 15) 69 | -11/Junkyard | Entered Materials 110 | -10/Materials | Discovered new exit (range 16) 318 | -10/Materials | Build established: Mutant 694 | -10/Materials | Discovered new exit (range 14) 1024 | -10/Materials | Discovered new exit (range 9) 1108 | -10/Materials | Discovered new exit (range 8) 1300 | -10/Materials | Entered Mines 1301 | -10/Mines | Learned location of Storage (-8) 1382 | -10/Mines | Deemed a non-threat by the Exiles lab entrance 1384 | -10/Mines | Discovered new exit (range 5) 1582 | -10/Mines | Found a damaged Exp. Sensor Array with a note attached 1667 | -10/Mines | Assembled infested the area 1707 | -10/Mines | Core integrity fell below 50% 1713 | -10/Mines | Core integrity fell below 20% 1714 | -10/Mines | Destroyed by D-53 Grenadier with Mini Grenade Launcher Last Messages --------------- Data stored: Storage entrances (x1). 01550_ System corrupted: Matter fused (-10). 01582_ A damaged part is partially visible under some rubble. There's a note attached: "Everyone keeps telling us we should avoid high-traffic areas because that's where patrols are more likely to show up, but that doesn't do us much good if we can't spot those areas until they're on top of us... With this we can! Deliver it to Megawrench for repairs then we'll never be afraid of an ambush while sneaking around Materials again, ha." 01667_ ALERT: Infestation in the mines, dispatching Demolisher response squad. 01694_ C-30 ARC bursts open, deploying its payload. 01694_ D-53 Grenadier unfolds itself. 01697_ System corrupted: Heat flow error (+114). 01705_ The unstable cave ceiling collapses. 01708_ Sml. Laser destroyed. 01711_ Destroyed Shock Absorption System. 01712_ Lgt. Nuclear Core destroyed. 01712_ Lgt. Treads destroyed. 01714_ Sml. Laser destroyed. Map ----- +----------------------------------------------------+ | | | | | | | | | | | | | | | | | ?????????????????????????????????????????????????? | | ?????????????????????????????????????????????????? | | ????????????????????????????????????????#######??? | | ???????????????????????????????????????## ##?? | | ???????????????????????????????????????# ### | | ???????????????????????????????????????# ! # | | ???????????????????????????????????????# | | ???????????????????????????????????????## | | ????????????????????????????????????????## | | ?????????????????????????????????????????# | | ??????????????????????????###????????????## ### | | ???????????????????????#### ####??????????## #?# | | ??????????????????????## ############# ### | | ?????????????????????## d % | | ????????????????????## d ################## | | ????????????????????# ##???????????????# | | ????????????????????# #?????????#?????# | | ????????????????????# @ ##????????## ????# | | ????????????????????# #????????## ????# | | ????????????????????# #?????#### ????# | | ????????????????????## ##????## ???## | | ?????????????????????## ###????## ???# | | ??????????????????????## #?????# #?## | | ???????????????????????# #????# ## | | ???????????????????????## #????# """ | | ????????????????????????# #????? """ # | | ????????????????????????# ????????# """ ##### | | ???????????????????????? #???????# #???? | | ??????????????????????? ##???????# ### #???? | | ??????????????????????? ###????????# ???# #???? | | ?????????????????????? ##???????????????# #???? | | ????????????????????? ?????????????????# #???? | | ????????????????????? ?????????????????# #???? | | ????????????????????## ?????????????????# #???? | | ?????????????????????## #?????????????????# #???? | | ??????????????????????##??????????????????# ###?? | | ??????????????????????????????????????????# #?? | | ??????????????????????????????????????????#### #?? | | ?????????????????????????????????????????????# #?? | | ?????????????????????????????????????????????# #?? | | ?????????????????????????????????????????????# #?? | | ?????????????????????????????????????????????# #?? | +----------------------------------------------------+ Best States ------------- Heat Dissipation 25 Coolant Potential 50 Energy Generation 14 Energy Capacity 250 Matter Stores 300 Matter Capacity 300 Sight Range 16 Terrain Scan Density 10 Armor Coverage 150 Evasion (%) 42 Recoil Reduction 1 Item Schematics ----------------- None Robot Schematics ------------------ None Fabricated ------------ Nothing Alien Tech Used ----------------- None Achievements -------------- None Challenges ------------ None Game ------ Seed HardenedSupercompositeClaw Manual? 0 Play Time 00:10:35 Cumulative 120.8 hours Start 2023.11.15 @ 21:18:31 End 2023.11.15 @ 21:27:40 Sessions 1 Manual Loads 0 Difficulty Rogue Special Mode None Game No. 115 Rogue 115 Adventurer 0 Explorer 0 Win Type - Total 1 Types 1/0/0/0/0/0/0/0/0 Lore% 44 Gallery% 50 Achievement% 37 Wizard Run 0 Options --------- ASCII 0 Keyboard 0 Movement Numpad Keybinds 0 Fullscreen 1 Font 18/SmallcapsGlow Map View 76x50 Tactical HUD 1 Map Filters NONE Filters NONE Steam 1 RUN: 55414c0a-9d71-4ce1-a875-cb7236d4447f